fUSD/lending_fUSD_20240116
["ID","MTS","AMOUNT","RATE_DAILY","PERIOD"]
[311788959,1705390247270,-500.0,0.00022371,2]
[311788960,1705390247279,-500.0,0.00022371,2]
[311788961,1705390247289,-677.61,0.00022371,2]
[311788962,1705390247298,-500.0,0.00022371,2]
[311788963,1705390247308,-574.96,0.00022371,2]
[311788964,1705390247317,-579.89,0.00022371,2]
[311788965,1705390247326,-500.0,0.00022371,2]
[311788966,1705390247335,-513.19,0.00022371,2]
[311788967,1705390247345,-500.0,0.00022371,2]
[311788968,1705390247355,-500.0,0.00022371,2]
[311788969,1705390247364,-500.0,0.00022371,2]
[311788970,1705390247373,-500.0,0.00022371,2]
[311788971,1705390247383,-500.0,0.00022371,2]
[311788972,1705390247392,-574.31,0.00022371,2]
[311788973,1705390247402,-500.0,0.00022371,2]
[311788974,1705390247411,-500.0,0.00022371,2]
[311788975,1705390247421,-500.0,0.00022371,2]
[311788976,1705390247430,-500.0,0.00022371,2]
[311788977,1705390247439,-500.0,0.00022371,2]
[311788978,1705390247449,-500.0,0.00022371,2]
[311788979,1705390247458,-1037.93,0.00022371,2]
[311788980,1705390247467,-585.2,0.00022371,2]
[311788981,1705390247476,-500.0,0.00022371,2]
[311788982,1705390247485,-500.0,0.00022371,2]
[311788983,1705390247495,-500.0,0.00022371,2]
[311788984,1705390247504,-500.0,0.00022371,2]
[311788985,1705390247514,-529.12,0.00022371,2]
[311788986,1705390247523,-500.0,0.00022371,2]
[311788987,1705390247533,-500.0,0.00022371,2]
[311788988,1705390247542,-500.17,0.00022371,2]
[311788989,1705390247552,-500.0,0.00022371,2]
[311788990,1705390247561,-500.0,0.00022371,2]
[311788991,1705390247570,-500.0,0.00022371,2]
[311788992,1705390247579,-500.0,0.00022371,2]
[311788993,1705390247588,-500.0,0.00022371,2]
[311788994,1705390247597,-500.0,0.00022371,7]
[311788995,1705390247607,-500.0,0.00022371,2]
[311788996,1705390247616,-500.0,0.00022371,2]
[311788997,1705390247626,-500.0,0.00022371,2]
[311788998,1705390247635,-500.0,0.00022371,2]
[311788999,1705390247645,-500.0,0.00022371,2]
[311789000,1705390247654,-568.14,0.00022371,2]
[311789001,1705390247664,-500.0,0.00022371,2]
[311789002,1705390247673,-596.14,0.00022371,2]
[311789003,1705390247683,-936.62,0.00022371,2]
[311789004,1705390247692,-500.0,0.00022371,2]
[311789005,1705390247702,-500.0,0.00022371,2]
[311789006,1705390247711,-500.0,0.00022371,2]
[311789007,1705390247720,-530.75,0.00022371,2]
[311789008,1705390247728,-500.0,0.00022371,2]
[311789009,1705390247738,-500.0,0.00022371,2]
[311789010,1705390247747,-500.0,0.00022371,2]
[311789011,1705390247756,-500.0,0.00022371,2]
[311789012,1705390247767,-806.26,0.00022371,2]
[311789013,1705390247776,-500.0,0.00022371,2]
[311789014,1705390247784,-500.0,0.00022371,2]
[311789015,1705390247793,-500.0,0.00022371,2]
[311789016,1705390247804,-525.21,0.00022371,2]
[311789017,1705390247813,-500.0,0.00022371,2]
[311789018,1705390247823,-500.0,0.00022371,2]
[311789019,1705390247833,-500.0,0.00022371,2]
[311789020,1705390247843,-500.0,0.00022371,2]
[311789021,1705390247853,-500.0,0.00022371,2]
[311789022,1705390247863,-150.0,0.00022371,2]
[311789023,1705390247874,-500.0,0.00022371,2]
[311789024,1705390247886,-500.0,0.00022371,2]
[311789025,1705390247895,-500.0,0.00022371,2]
[311789026,1705390247904,-500.0,0.00022371,2]
[311789027,1705390247913,-500.0,0.00022371,2]
[311789028,1705390247922,-518.33,0.00022371,2]
[311789029,1705390247931,-500.0,0.00022371,2]
[311789030,1705390247940,-500.0,0.00022371,2]
[311789031,1705390247950,-633.4,0.00022371,2]
[311789032,1705390247961,-500.0,0.00022371,2]
[311789033,1705390247972,-678.72,0.00022371,2]
[311789034,1705390247982,-4134.43,0.00022371,2]
[311789035,1705390247993,-621.85,0.00022371,2]
[311789036,1705390248002,-1476.04,0.00022371,2]
[311789037,1705390248013,-500.0,0.00022371,2]
[311789038,1705390248021,-1386.62,0.00022371,2]
[311789039,1705390248030,-500.0,0.00022371,2]
[311789040,1705390248039,-537.73089069,0.00022371,2]
[311789041,1705390248050,-500.0,0.00022371,2]
[311789042,1705390248060,-500.0,0.00022371,2]
[311789043,1705390248070,-841.77,0.00022371,2]
[311789044,1705390248081,-500.0,0.00022371,2]
[311789045,1705390248091,-1100.8,0.00022371,2]
[311789046,1705390248100,-500.0,0.00022371,2]
[311789047,1705390248109,-500.0,0.00022371,2]
[311789048,1705390248118,-589.93,0.00022371,2]
[311789049,1705390248128,-700.19,0.00022371,2]
[311789050,1705390248137,-500.0,0.00022371,2]
[311789051,1705390248145,-641.32,0.00022371,2]
[311789052,1705390248156,-627.4,0.00022371,2]
[311789053,1705390248166,-1827.95,0.00022371,2]
[311789054,1705390248176,-627.17,0.00022371,2]
[311789055,1705390248185,-500.0,0.00022371,2]
[311789056,1705390248195,-500.0,0.00022371,2]
[311789057,1705390248206,-2481.46,0.00022371,2]
[311789058,1705390248215,-500.0,0.00022371,2]
[311789059,1705390248224,-764.53,0.00022371,2]
[311789060,1705390248233,-500.0,0.00022371,2]
[311789061,1705390248242,-1053.92,0.00022371,2]
[311789062,1705390248252,-500.0,0.00022371,2]
[311789063,1705390248262,-500.0,0.00022371,5]
[311789064,1705390248270,-2487.51,0.00022371,2]
[311789065,1705390248280,-500.0,0.00022371,2]
[311789066,1705390248290,-500.0,0.00022371,2]
[311789067,1705390248299,-500.0,0.00022371,2]
[311789068,1705390248308,-2454.61,0.00022371,2]
[311789069,1705390248318,-500.0,0.00022371,2]
[311789070,1705390248326,-672.93,0.00022371,2]
[311789071,1705390248335,-508.91,0.00022371,2]
[311789072,1705390248344,-563.88,0.00022371,2]
[311789073,1705390248353,-1551.22,0.00022371,2]
[311789074,1705390248362,-500.0,0.00022371,2]
[311789075,1705390248371,-555.5,0.00022371,2]
[311789076,1705390248381,-1008.43,0.00022371,2]
[311789077,1705390248390,-500.0,0.00022371,2]
[311789078,1705390248399,-1026.78,0.00022371,2]
[311789079,1705390248409,-682.93,0.00022371,2]
[311789080,1705390248418,-500.0,0.00022371,2]
[311789081,1705390248427,-2773.7,0.00022371,2]
[311789082,1705390248437,-711.67,0.00022371,2]
[311789083,1705390248446,-500.0,0.00022371,2]
[311789084,1705390248455,-500.0,0.00022371,2]
[311789085,1705390248464,-602.38,0.00022371,2]
[311789086,1705390248473,-1281.14,0.00022371,2]
[311789087,1705390248483,-500.0,0.00022371,2]
[311789088,1705390248493,-500.0,0.00022371,2]
[311789089,1705390248502,-540.07,0.00022371,2]
[311789090,1705390248512,-798.29,0.00022371,2]
[311789091,1705390248521,-527.4,0.00022371,2]
[311789092,1705390248530,-500.0,0.00022372,2]
[311789093,1705390248539,-500.0,0.00022372,2]
[311789094,1705390248549,-500.0,0.00022372,2]
[311789095,1705390248558,-500.0,0.00022372,2]
[311789096,1705390248568,-449.42854464,0.00022372,2]
[311789097,1705390248578,-500.0,0.00022372,2]
[311789098,1705390248587,-500.0,0.00022372,2]
[311789099,1705390248597,-500.0,0.00022372,2]
[311789100,1705390248607,-500.0,0.00022372,2]
[311789101,1705390248617,-500.0,0.00022372,2]
[311789102,1705390248626,-571.02,0.00022372,2]
[311789103,1705390248637,-500.0,0.00022372,2]
[311789104,1705390248648,-500.0,0.00022372,2]
[311789105,1705390248657,-500.0,0.00022372,2]
[311789106,1705390248667,-500.0,0.00022372,2]
[311789107,1705390248678,-462.49028069,0.00022372,2]
[311789108,1705390248687,-706.78,0.00022372,2]
[311789109,1705390248696,-500.0,0.00022372,2]
[311789110,1705390248705,-500.0,0.00022372,2]
[311789111,1705390248714,-500.0,0.00022372,2]
[311789112,1705390248723,-500.0,0.00022372,2]
[311789113,1705390248734,-500.0,0.00022372,2]
[311789114,1705390248743,-500.0,0.00022372,2]
[311789115,1705390248753,-500.0,0.00022372,2]
[311789116,1705390248762,-500.0,0.00022372,2]
[311789117,1705390248771,-500.0,0.00022372,2]
[311789118,1705390248780,-500.0,0.00022372,2]
[311789119,1705390248789,-500.0,0.00022372,2]
[311789120,1705390248798,-500.0,0.00022372,2]
[311789121,1705390248808,-500.0,0.00022372,2]
[311789122,1705390248817,-500.0,0.00022372,2]
[311789123,1705390248826,-500.0,0.00022372,2]
[311789124,1705390248835,-500.0,0.00022372,2]
[311789125,1705390248844,-500.0,0.00022372,2]
[311789126,1705390248854,-500.0,0.00022372,2]
[311789127,1705390248863,-500.0,0.00022372,2]
[311789128,1705390248872,-500.0,0.00022372,2]
[311789129,1705390248880,-500.0,0.00022372,2]
[311789130,1705390248889,-390.85287352,0.00022372,2]
[311789131,1705390248898,-500.0,0.00022372,2]
[311789132,1705390248908,-500.0,0.00022372,2]
[311789133,1705390248920,-500.0,0.00022372,2]
[311789134,1705390248931,-500.0,0.00022372,2]
[311789135,1705390248941,-500.0,0.00022372,2]
[311789136,1705390248953,-500.0,0.00022372,2]
[311789137,1705390248963,-500.0,0.00022372,2]
[311789138,1705390248973,-452.46742809,0.00022372,2]
[311789139,1705390248982,-893.58,0.00022372,2]
[311789140,1705390248991,-500.0,0.00022372,2]
[311789141,1705390249002,-500.0,0.00022372,2]
[311789142,1705390249012,-500.0,0.00022372,2]
[311789143,1705390249021,-500.0,0.00022372,2]
[311789144,1705390249030,-500.0,0.00022372,2]
[311789145,1705390249039,-500.0,0.00022372,2]
[311789146,1705390249048,-500.0,0.00022372,2]
[311789147,1705390249057,-500.0,0.00022372,2]
[311789148,1705390249066,-500.0,0.00022372,2]
[311789149,1705390249075,-500.0,0.00022372,2]
[311789150,1705390249084,-500.0,0.00022372,2]
[311789151,1705390249093,-500.0,0.00022372,2]
[311789152,1705390249222,-500.0,0.00022372,2]
[311789153,1705390249232,-500.0,0.00022372,2]
[311789154,1705390249242,-500.0,0.00022372,2]
[311789155,1705390249252,-500.0,0.00022372,2]
[311789156,1705390249262,-500.0,0.00022372,2]
[311789157,1705390249272,-500.0,0.00022372,2]
[311789158,1705390249281,-500.0,0.00022372,2]
[311789159,1705390249291,-500.0,0.00022372,2]
[311789160,1705390249301,-500.0,0.00022372,2]
[311789161,1705390249310,-786.73,0.00022372,2]
[311789162,1705390249319,-536.64,0.00022372,2]
[311789163,1705390249329,-500.0,0.00022372,2]
[311789164,1705390249338,-394.21480348,0.00022372,2]
[311789165,1705390249347,-500.0,0.00022372,2]
[311789166,1705390249356,-500.0,0.00022372,2]
[311789167,1705390249366,-778.49,0.00022372,2]
[311789168,1705390249375,-500.0,0.00022372,2]
[311789169,1705390249384,-500.0,0.00022372,2]
[311789170,1705390249394,-500.0,0.00022372,2]
[311789171,1705390249403,-500.0,0.00022372,2]
[311789172,1705390249413,-625.37,0.00022372,2]
[311789173,1705390249423,-500.0,0.00022372,2]
[311789174,1705390249432,-500.0,0.00022372,2]
[311789175,1705390249442,-500.0,0.00022372,2]
[311789176,1705390249451,-645.71,0.00022372,2]
[311789177,1705390249460,-382.07130727,0.00022372,2]
[311789178,1705390249469,-500.0,0.00022372,2]
[311789179,1705390249479,-500.0,0.00022372,2]
[311789180,1705390249488,-500.0,0.00022372,2]
[311789181,1705390249498,-1174.73,0.00022372,2]
[311789182,1705390249507,-500.0,0.00022372,2]
[311789183,1705390249518,-500.0,0.00022372,2]
[311789184,1705390249530,-500.0,0.00022372,2]
[311789185,1705390249539,-500.0,0.00022372,2]
[311789186,1705390249548,-500.0,0.00022372,2]
[311789187,1705390249557,-500.0,0.00022372,2]
[311789188,1705390249566,-500.0,0.00022372,2]
[311789189,1705390249575,-500.0,0.00022372,2]
[311789190,1705390249584,-515.88,0.00022372,2]
[311789191,1705390249593,-1065.25,0.00022372,2]
[311789192,1705390249603,-500.0,0.00022372,2]
[311789193,1705390249612,-500.0,0.00022372,2]
[311789194,1705390249621,-500.0,0.00022372,2]
[311789195,1705390249630,-500.0,0.00022372,2]
[311789196,1705390249640,-555.3,0.00022372,2]
[311789197,1705390249649,-500.0,0.00022372,2]
[311789198,1705390249658,-500.0,0.00022372,2]
[311789199,1705390249668,-659.15,0.00022372,2]
[311789200,1705390249677,-500.0,0.00022372,2]
[311789201,1705390249686,-543.75,0.00022372,2]
[311789202,1705390249695,-500.0,0.00022372,2]
[311789203,1705390249706,-500.0,0.00022372,2]
[311789204,1705390249716,-939.73,0.00022372,2]
[311789205,1705390249725,-500.0,0.00022372,2]
[311789206,1705390249735,-500.0,0.00022372,2]
[311789207,1705390249744,-500.0,0.00022372,2]
[311789208,1705390249753,-500.0,0.00022372,2]
[311789209,1705390249763,-707.91,0.00022372,2]
[311789210,1705390249772,-513.01,0.00022372,2]
[311789211,1705390249781,-500.0,0.00022372,2]
[311789212,1705390249791,-500.0,0.00022372,2]
[311789213,1705390249800,-500.0,0.00022372,2]
[311789214,1705390249809,-500.0,0.00022372,2]
[311789215,1705390249819,-500.0,0.00022372,2]
[311789216,1705390249828,-500.0,0.00022372,2]
[311789217,1705390249838,-500.0,0.00022372,2]
[311789218,1705390249847,-500.0,0.00022372,2]
[311789219,1705390249856,-500.0,0.00022372,2]
[311789220,1705390249866,-537.88,0.00022372,2]
[311789221,1705390249875,-500.0,0.00022372,2]
[311789222,1705390249884,-607.86,0.00022372,2]
[311789223,1705390249893,-500.0,0.00022372,2]
[311789224,1705390249902,-500.0,0.00022372,2]
[311789225,1705390249912,-500.0,0.00022372,2]
[311789226,1705390249921,-2072.82,0.00022372,2]
[311789227,1705390249931,-525.45111683,0.00022372,2]
[311789228,1705390249941,-500.0,0.00022372,2]
[311789229,1705390249951,-500.0,0.00022372,2]
[311789230,1705390249962,-450.08854052,0.00022372,2]
[311789231,1705390249973,-500.0,0.00022372,2]
[311789232,1705390249984,-591.14,0.00022372,2]
[311789233,1705390249994,-500.0,0.00022372,2]
[311789234,1705390250005,-500.0,0.00022372,2]
[311789235,1705390250016,-500.0,0.00022372,2]
[311789236,1705390250028,-515.16,0.00022372,2]
[311789237,1705390250037,-500.0,0.00022372,2]
[311789238,1705390250046,-500.0,0.00022372,2]
[311789239,1705390250055,-500.0,0.00022372,2]
[311789240,1705390250064,-500.0,0.00022372,2]
[311789241,1705390250074,-603.75,0.00022372,2]
[311789242,1705390250084,-500.0,0.00022372,2]
[311789243,1705390250093,-866.87,0.00022372,2]
[311789244,1705390250103,-652.11,0.00022372,2]
[311789245,1705390250113,-500.0,0.00022372,2]
[311789246,1705390250122,-500.0,0.00022372,2]
[311789247,1705390250131,-500.0,0.00022372,2]
[311789248,1705390250141,-896.8,0.00022372,2]
[311789249,1705390250150,-500.0,0.00022372,2]
[311789250,1705390250159,-500.0,0.00022372,2]
[311789251,1705390250168,-500.0,0.00022372,2]
[311789252,1705390250178,-500.0,0.00022372,2]
[311789253,1705390250187,-826.3,0.00022372,2]
[311789254,1705390250196,-762.93,0.00022372,2]
[311789255,1705390250208,-443.01533567,0.00022372,2]
[311789256,1705390250218,-500.0,0.00022372,2]
[311789257,1705390250227,-500.0,0.00022372,2]
[311789258,1705390250237,-500.0,0.00022372,2]
[311789259,1705390250247,-601.61,0.00022372,2]
[311789260,1705390250256,-517.56,0.00022372,2]
[311789261,1705390250267,-500.0,0.00022372,2]
[311789262,1705390250277,-567.76,0.00022372,2]
[311789263,1705390250289,-566.04835881,0.00022372,2]
[311789264,1705390250298,-626.5,0.00022372,2]
[311789265,1705390250308,-391.65,0.00022372,2]
[311789266,1705390250318,-500.0,0.00022372,2]
[311789267,1705390250327,-889.31,0.00022372,2]
[311789268,1705390250337,-500.0,0.00022372,2]
[311789269,1705390250346,-689.18,0.00022372,2]
[311789270,1705390250356,-500.0,0.00022372,2]
[311789271,1705390250365,-531.62,0.00022372,2]
[311789272,1705390250375,-1473.05,0.00022372,2]
[311789273,1705390250384,-500.0,0.00022372,2]
[311789274,1705390250393,-500.0,0.00022372,2]
[311789275,1705390250403,-500.0,0.00022372,2]
[311789276,1705390250413,-583.17316334,0.00022372,2]
[311789277,1705390250423,-500.0,0.00022372,2]
[311789278,1705390250433,-508.93,0.00022372,2]
[311789279,1705390250443,-500.0,0.00022372,2]
[311789280,1705390250452,-500.0,0.00022372,2]
[311789281,1705390250462,-500.0,0.00022372,2]
[311789282,1705390250471,-500.0,0.00022372,2]
[311789283,1705390250480,-500.0,0.00022372,2]
[311789284,1705390250490,-500.0,0.00022372,2]
[311789285,1705390250500,-500.0,0.00022372,2]
[311789286,1705390250509,-1604.72,0.00022372,2]
[311789287,1705390250519,-548.32,0.00022372,2]
[311789288,1705390250529,-500.0,0.00022372,2]
[311789289,1705390250538,-500.0,0.00022372,2]
[311789290,1705390250548,-500.0,0.00022372,2]
[311789291,1705390250557,-502.73,0.00022372,2]
[311789292,1705390250567,-500.0,0.00022372,2]
[311789293,1705390250576,-500.0,0.00022372,2]
[311789294,1705390250585,-500.0,0.00022372,2]
[311789295,1705390250595,-523.07,0.00022372,2]
[311789296,1705390250605,-500.0,0.00022372,2]
[311789297,1705390250614,-1184.6,0.00022372,2]
[311789298,1705390250624,-500.0,0.00022372,2]
[311789299,1705390250635,-500.0,0.00022372,2]
[311789300,1705390250645,-500.0,0.00022372,2]
[311789301,1705390250654,-500.0,0.00022372,2]
[311789302,1705390250664,-568.57,0.00022372,2]
[311789303,1705390250674,-500.0,0.00022372,2]
[311789304,1705390250683,-500.0,0.00022372,2]
[311789305,1705390250693,-500.0,0.00022372,2]
[311789306,1705390250703,-718.02,0.00022372,2]
[311789307,1705390250712,-500.0,0.00022372,2]
[311789308,1705390250722,-500.0,0.00022372,2]
[311789309,1705390250731,-884.39,0.00022372,2]
[311789310,1705390250741,-500.0,0.00022372,2]
[311789311,1705390250750,-500.0,0.00022372,2]
[311789312,1705390250760,-500.0,0.00022372,2]
[311789313,1705390250770,-459.76933486,0.00022372,2]
[311789314,1705390250780,-829.88,0.00022372,2]
[311789315,1705390250790,-500.0,0.00022372,2]
[311789316,1705390250800,-959.66,0.00022372,2]
[311789317,1705390250810,-500.0,0.00022372,2]
[311789318,1705390250820,-500.0,0.00022372,2]
[311789319,1705390250830,-699.04,0.00022372,2]
[311789320,1705390250839,-500.0,0.00022372,2]
[311789321,1705390250849,-500.0,0.00022372,2]
[311789322,1705390250858,-500.0,0.00022372,2]
[311789323,1705390250867,-500.0,0.00022372,2]
[311789324,1705390250877,-500.0,0.00022372,2]
[311789325,1705390250886,-500.0,0.00022372,2]
[311789326,1705390250895,-685.79,0.00022372,2]
[311789327,1705390250905,-500.0,0.00022372,2]
[311789328,1705390250914,-250.0,0.00022372,2]
[311789329,1705390250923,-2085.17,0.00022372,2]
[311789330,1705390250933,-500.0,0.00022372,2]
[311789331,1705390250943,-500.0,0.00022372,2]
[311789332,1705390250952,-729.84,0.00022372,2]
[311789333,1705390250962,-549.86,0.00022372,2]
[311789334,1705390250971,-1020.77,0.00022372,2]
[311789335,1705390250980,-500.0,0.00022372,2]
[311789336,1705390250989,-500.0,0.00022372,2]
[311789337,1705390250999,-542.05,0.00022372,2]
[311789338,1705390251009,-500.0,0.00022372,2]
[311789339,1705390251019,-597.17,0.00022372,2]
[311789340,1705390251028,-500.0,0.00022372,2]
[311789341,1705390251037,-500.0,0.00022372,2]
[311789342,1705390251047,-635.34,0.00022372,2]
[311789343,1705390251057,-2642.1,0.00022372,2]
[311789344,1705390251067,-500.0,0.00022372,2]
[311789345,1705390251076,-1931.88,0.00022372,2]
[311789346,1705390251086,-500.0,0.00022372,2]
[311789347,1705390251096,-500.0,0.00022372,2]
[311789348,1705390251105,-622.7,0.00022372,2]
[311789349,1705390251114,-2521.99,0.00022372,2]
[311789350,1705390251123,-706.81,0.00022372,2]
[311789351,1705390251133,-500.0,0.00022372,2]
[311789352,1705390251142,-500.0,0.00022372,2]
[311789353,1705390251151,-728.74,0.00022372,2]
[311789354,1705390251160,-500.0,0.00022372,2]
[311789355,1705390251170,-840.45,0.00022372,2]
[311789356,1705390251181,-812.97,0.00022372,2]
[311789357,1705390251190,-2161.17,0.00022372,2]
[311789358,1705390251199,-557.01,0.00022372,2]
[311789359,1705390251209,-500.0,0.00022372,2]
[311789360,1705390251218,-641.12,0.00022372,2]
[311789361,1705390251227,-574.95,0.00022372,2]
[311789362,1705390251236,-615.48,0.00022372,2]
[311789363,1705390251245,-500.0,0.00022372,2]
[311789364,1705390251254,-901.14,0.00022372,2]
[311789365,1705390251265,-500.0,0.00022372,2]
[311789366,1705390251274,-500.0,0.00022372,2]
[311789367,1705390251283,-500.0,0.00022372,2]
[311789368,1705390251293,-500.0,0.00022372,2]
[311789369,1705390251302,-500.0,0.00022372,2]
[311789370,1705390251312,-2898.09,0.00022372,2]
[311789371,1705390251321,-500.0,0.00022372,2]
[311789372,1705390251647,-717.43,0.00022372,2]
[311789373,1705390251657,-500.0,0.00022372,2]
[311789374,1705390251666,-553.8,0.00022372,2]
[311789375,1705390251675,-873.52,0.00022372,2]
[311789376,1705390251684,-500.0,0.00022372,2]
[311789377,1705390251693,-844.39,0.00022372,2]
[311789378,1705390251702,-544.17,0.00022372,2]
[311789379,1705390251711,-500.0,0.00022372,2]
[311789380,1705390251720,-500.0,0.00022372,2]
[311789381,1705390251729,-735.74,0.00022372,2]
[311789382,1705390251738,-500.0,0.00022372,2]
[311789383,1705390251747,-500.0,0.00022372,2]
[311789384,1705390251756,-500.0,0.00022372,2]
[311789385,1705390251766,-753.84,0.00022372,2]
[311789386,1705390251776,-2676.44,0.00022372,2]
[311789387,1705390251785,-617.67,0.00022372,2]
[311789388,1705390251795,-812.17,0.00022372,2]
[311789389,1705390251804,-2403.75,0.00022372,2]
[311789390,1705390251814,-1046.12,0.00022372,2]
[311789391,1705390251823,-585.81,0.00022372,2]
[311789392,1705390251834,-500.0,0.00022372,2]
[311789393,1705390251844,-2221.05,0.00022372,2]
[311789394,1705390251854,-500.0,0.00022372,2]
[311789395,1705390251865,-517.39,0.00022372,2]
[311789396,1705390251874,-13365.01,0.00022372,2]
[311789397,1705390251884,-509.59,0.00022372,2]
[311789398,1705390251894,-781.52,0.00022372,2]
[311789399,1705390251904,-500.0,0.00022372,2]
[311789400,1705390251913,-500.0,0.00022372,2]
[311789401,1705390251922,-500.0,0.00022372,2]
[311789402,1705390251932,-500.0,0.00022372,2]
[311789403,1705390251941,-334.5259425,0.00022372,2]
[311789404,1705390251950,-500.0,0.00022372,2]
[311789405,1705390251960,-500.0,0.00022372,2]
[311789406,1705390251969,-500.0,0.00022372,2]
[311789407,1705390251979,-500.0,0.00022372,2]
[311789408,1705390251988,-500.0,0.00022372,2]
[311789409,1705390251998,-500.0,0.00022372,2]
[311789410,1705390252007,-563.88,0.00022372,2]
[311789411,1705390252019,-583.02,0.00022372,2]
[311789412,1705390252029,-500.0,0.00022372,2]
[311789413,1705390252041,-634.18,0.00022372,2]
[311789414,1705390252051,-500.0,0.00022372,2]
[311789415,1705390252061,-890.13,0.00022372,2]
[311789416,1705390252070,-500.0,0.00022372,2]
[311789417,1705390252081,-764.62,0.00022372,2]
[311789418,1705390252092,-608.23,0.00022372,2]
[311789419,1705390252103,-500.0,0.00022372,2]
[311789420,1705390252115,-500.0,0.00022372,2]
[311789421,1705390252125,-595.18,0.00022372,2]
[311789422,1705390252136,-943.61,0.00022372,2]
[311789423,1705390252146,-500.0,0.00022372,2]
[311789424,1705390252155,-500.0,0.00022372,2]
[311789425,1705390252165,-500.0,0.00022372,2]
[311789426,1705390252175,-1213.12,0.00022372,2]
[311789427,1705390252185,-500.0,0.00022372,2]
[311789428,1705390252197,-500.0,0.00022372,2]
[311789429,1705390252210,-173.55,0.00022381,2]
[311789430,1705390252219,-11384.22451292,0.00022385,2]
[311789431,1705390252230,-155.33,0.00022386,2]
[311789432,1705390252240,-37367.0,0.000224,2]
[311789433,1705390252252,-3313.0,0.000224,2]
[311789434,1705390252263,-249.47948232,0.00022416,2]
[311789435,1705390252273,-500.0,0.00022416,2]
[311789436,1705390252284,-1237.55,0.00022416,2]
[311789437,1705390252294,-642.42,0.00022416,2]
[311789438,1705390252305,-500.0,0.00022417,2]
[311789439,1705390252314,-500.0,0.00022417,2]
[311789440,1705390252325,-500.0,0.00022417,2]
[311789441,1705390252336,-267.09573947,0.00022417,2]
[311789442,1705390252345,-500.0,0.00022417,2]
[311789443,1705390252355,-500.0,0.00022417,2]
[311789444,1705390252364,-500.0,0.00022417,2]
[311789445,1705390252374,-500.0,0.00022417,2]
[311789446,1705390252385,-500.0,0.00022417,2]
[311789447,1705390252394,-500.0,0.00022417,2]
[311789448,1705390252404,-559.06,0.00022417,2]
[311789449,1705390252413,-500.0,0.00022417,2]
[311789450,1705390252424,-500.0,0.00022417,2]
[311789451,1705390252434,-500.0,0.00022417,2]
[311789452,1705390252443,-500.0,0.00022417,2]
[311789453,1705390252452,-500.0,0.00022417,2]
[311789454,1705390252461,-500.0,0.00022417,2]
[311789455,1705390252471,-506.08,0.00022417,2]
[311789456,1705390252481,-500.0,0.00022417,2]
[311789457,1705390252490,-500.0,0.00022417,2]
[311789458,1705390252501,-500.0,0.00022417,2]